[Event "RUS-ch Women Rapid 2019"]
[Site "Sochi"]
[Date "2019.10.15"]
[Round "2.9"]
[White "Mukhina, Jana"]
[Black "Bivol, Alina"]
[Result "0-1"]
[ECO "C03"]
[WhiteElo "2105"]
[BlackElo "2283"]
[Annotator "NA"]
[PlyCount "112"]
[EventDate "2019.10.15"]
[EventType "swiss"]
[EventCountry "RUS"]
[SourceTitle "playchess.com"]
[Source "ChessBase"]
[SourceQuality "1"]
[TimeControl "900+10"]

1. e4 {[%emt 0:00:00]} e6 {[%emt 0:00:00]} 2. d4 {[%emt 0:00:01]} d5 {[%emt 0:00:00]} 3. Nd2 {[%emt 0:00:01]} Be7 {[%emt 0:00:07]} 4. Bd3 {[%emt 0:02:21]} c5 {[%emt 0:00:01]} 5. dxc5 {[%emt 0:00:44]} Nf6 {[%emt 0:00:01]} 6. Qe2 {[%emt 0:00:23]} a5 {[%emt 0:00:05]} 7. c4 {[%emt 0:05:26]} dxe4 {[%emt 0:01:24]} 8. Nxe4 {[%emt 0:00:05]} Na6 {[%emt 0:00:02]} 9. c6 {[%emt 0:00:47]} bxc6 {[%emt 0:00:01]} 10. Be3 {[%emt 0:01:47]} Bb4+ {[%emt 0:04:14]} 11. Nd2 {[%emt 0:01:23]} Nc5 {[%emt 0:00:03]} 12. Bc2 {[%emt 0:00:03]} Nce4 {[%emt 0:00:33]} 13. Ngf3 {[%emt 0:00:36]} Ba6 {[%emt 0:01:10]} 14. O-O {[%emt 0:01:01]} Nxd2 {[%emt 0:00:05]} 15. Nxd2 {[%emt 0:00:08]} O-O {[%emt 0:00:12]} 16. Rfd1 {[%emt 0:00:28]} Qe7 {[%emt 0:01:28]} 17. Ba4 {[%emt 0:00:37]} Rac8 {[%emt 0:00:31]} 18. Rac1 {[%emt 0:00:44]} h6 {[%emt 0:00:12]} 19. Qf3 {[%emt 0:00:17]} Rfd8 {[%emt 0:01:20]} 20. a3 {[%emt 0:01:03]} Bd6 {[%emt 0:00:24]} 21. Ne4 {[%emt 0:00:11]} Nxe4 {[%emt 0:00:34]} 22. Qxe4 {[%emt 0:00:01]} c5 {[%emt 0:00:19]} 23. Qg4 {[%emt 0:00:28]} f5 {[%emt 0:00:40]} 24. Qf3 {[%emt 0:00:08]} Bb7 {[%emt 0:00:14]} 25. Qe2 {[%emt 0:00:01]} Qh4 {[%emt 0:00:05]} 26. g3 {[%emt 0:00:14]} Qe4 {[%emt 0:00:43]} 27. f3 {[%emt 0:00:05]} Qxf3 {[%emt 0:00:02]} 28. Qxf3 {[%emt 0:00:02]} Bxf3 {[%emt 0:00:02]} 29. Rf1 {[%emt 0:00:07]} Be4 {[%emt 0:00:09]} 30. Bd2 {[%emt 0:00:18]} Be5 {[%emt 0:00:09]} 31. Bc3 {[%emt 0:00:16]} Bxc3 {[%emt 0:00:05]} 32. Rxc3 {[%emt 0:00:02]} Rd2 {[%emt 0:00:01]} 33. Rf2 {[%emt 0:00:02]} Rcd8 {[%emt 0:00:01]} 34. Re3 {[%emt 0:00:37]} R8d4 {[%emt 0:00:36]} 35. Bb3 {[%emt 0:00:11]} h5 {[%emt 0:00:42]} 36. h4 {[%emt 0:00:01]} Kh7 {[%emt 0:00:17]} 37. Rfe2 {[%emt 0:00:17]} Kg6 {[%emt 0:00:54]} 38. Kf2 {[%emt 0:00:09]} Kf6 {[%emt 0:00:01]} 39. Rxd2 {[%emt 0:00:13]} Rxd2+ {[%emt 0:00:02]} 40. Re2 {[%emt 0:00:00]} Rd3 {[%emt 0:00:10]} 41. Re3 {[%emt 0:00:02]} Rd8 {[%emt 0:00:26]} 42. Ba4 {[%emt 0:00:03]} Ke5 {[%emt 0:00:06]} 43. Bb5 {[%emt 0:00:04]} Rd1 {[%emt 0:00:17]} 44. b4 {[%emt 0:00:35]} axb4 {[%emt 0:00:07]} 45. axb4 {[%emt 0:00:02]} cxb4 {[%emt 0:00:35]} 46. Rb3 {[%emt 0:00:10]} Rb1 {[%emt 0:00:02]} 47. Rxb1 {[%emt 0:00:11]} Bxb1 {[%emt 0:00:02]} 48. Ke3 {[%emt 0:00:02]} b3 {[%emt 0:00:07]} 49. c5 {[%emt 0:00:27]} b2 {[%emt 0:00:18]} 50. c6 {[%emt 0:00:14]} Kd6 {[%emt 0:00:01]} 51. Bc4 {[%emt 0:00:08]} Be4 {[%emt 0:00:04]} 52. Ba2 {[%emt 0:00:01]} b1=Q {[%emt 0:00:15]} 53. Bxb1 {[%emt 0:00:02]} Bxb1 {[%emt 0:00:01]} 54. Kf4 {[%emt 0:00:00]} Kxc6 {[%emt 0:00:02]} 55. Kg5 {[%emt 0:00:01]} e5 {[%emt 0:00:11]} 56. Kxh5 {[%emt 0:00:02]} e4 {[%emt 0:00:01]} 0-1

[Event "RUS-ch Women Rapid 2019"]
[Site "Sochi"]
[Date "2019.10.15"]
[Round "2.10"]
[White "Gubernatorova, Lyudmila"]
[Black "Gritsayeva, Oksana"]
[Result "1/2-1/2"]
[ECO "E11"]
[WhiteElo "2200"]
[BlackElo "2260"]
[Annotator "NA"]
[PlyCount "71"]
[EventDate "2019.10.15"]
[EventType "swiss"]
[EventCountry "RUS"]
[SourceTitle "playchess.com"]
[Source "ChessBase"]
[SourceQuality "1"]
[TimeControl "900+10"]

1. d4 {[%emt 0:00:00]} Nf6 {[%emt 0:00:00]} 2. c4 {[%emt 0:00:00]} e6 {[%emt 0:00:00]} 3. Nf3 {[%emt 0:00:00]} Bb4+ {[%emt 0:00:09]} 4. Bd2 {[%emt 0:00:00]} c5 {[%emt 0:00:02]} 5. Bxb4 cxb4 {[%emt 0:00:01]} 6. a3 {[%emt 0:00:14]} bxa3 {[%emt 0:00:09]} 7. Rxa3 {[%emt 0:00:06]} Nc6 {[%emt 0:01:50]} 8. Nc3 {[%emt 0:00:07]} d6 {[%emt 0:00:24]} 9. e4 {[%emt 0:00:21]} O-O {[%emt 0:00:12]} 10. d5 {[%emt 0:00:46]} exd5 {[%emt 0:00:46]} 11. cxd5 {[%emt 0:00:10]} Nb4 {[%emt 0:01:04]} 12. Be2 {[%emt 0:00:41]} Bg4 {[%emt 0:01:17]} 13. h3 {[%emt 0:00:20]} Bxf3 {[%emt 0:00:06]} 14. Bxf3 {[%emt 0:00:02]} Re8 {[%emt 0:00:36]} 15. O-O {[%emt 0:00:03]} Nd7 {[%emt 0:00:59]} 16. Be2 {[%emt 0:02:08]} Nc5 {[%emt 0:00:20]} 17. Bb5 {[%emt 0:01:03]} Re7 {[%emt 0:00:30]} 18. Re1 {[%emt 0:00:09]} a6 {[%emt 0:00:18]} 19. Bf1 {[%emt 0:00:27]} Qb6 {[%emt 0:00:55]} 20. Na4 {[%emt 0:00:53]} Nxa4 {[%emt 0:00:07]} 21. Rxa4 {[%emt 0:01:40]} Rae8 {[%emt 0:00:39]} 22. Qd2 {[%emt 0:01:11]} a5 {[%emt 0:00:17]} 23. Rea1 {[%emt 0:00:12]} Rxe4 {[%emt 0:00:13]} 24. Rxa5 {[%emt 0:00:10]} Qd4 {[%emt 0:02:56]} 25. Qxd4 {[%emt 0:01:47]} Rxd4 {[%emt 0:00:01]} 26. Ra7 {[%emt 0:00:09]} Nxd5 {[%emt 0:00:21]} 27. Rxb7 {[%emt 0:00:08]} g6 {[%emt 0:01:40]} 28. Raa7 {[%emt 0:01:11]} Re1 {[%emt 0:00:54]} 29. Rxf7 {[%emt 0:00:40]} Rdd1 {[%emt 0:00:25]} 30. Rg7+ {[%emt 0:00:08]} Kf8 {[%emt 0:00:01]} 31. Rxh7 {[%emt 0:00:06]} Rxf1+ {[%emt 0:00:21]} 32. Kh2 {[%emt 0:00:01]} Kg8 {[%emt 0:00:59]} 33. Rag7+ {[%emt 0:00:14]} Kf8 {[%emt 0:00:02]} 34. Ra7 {[%emt 0:00:01]} Kg8 {[%emt 0:00:18]} 35. Rag7+ {[%emt 0:00:01]} Kf8 {[%emt 0:00:02]} 36. Ra7 {[%emt 0:00:01]} 1/2-1/2

[Event "RUS-ch Women Rapid 2019"]
[Site "Sochi"]
[Date "2019.10.15"]
[Round "2.11"]
[White "Karavaeva, Olga"]
[Black "Klyasheva, Tatiana"]
[Result "1-0"]
[ECO "A13"]
[WhiteElo "2260"]
[BlackElo "2049"]
[Annotator "NA"]
[PlyCount "57"]
[EventDate "2019.10.15"]
[EventType "swiss"]
[EventCountry "RUS"]
[SourceTitle "playchess.com"]
[Source "ChessBase"]
[SourceQuality "1"]
[TimeControl "900+10"]

1. c4 {[%emt 0:00:00]} e6 {[%emt 0:00:00]} 2. g3 {[%emt 0:00:00]} d5 {[%emt 0:00:00]} 3. Bg2 {[%emt 0:00:01]} b6 {[%emt 0:00:30]} 4. Nf3 {[%emt 0:00:59]} Bb7 {[%emt 0:00:01]} 5. Qc2 {[%emt 0:00:35]} c5 {[%emt 0:00:25]} 6. O-O {[%emt 0:00:38]} Nc6 {[%emt 0:00:56]} 7. cxd5 {[%emt 0:00:12]} exd5 {[%emt 0:00:14]} 8. a3 {[%emt 0:01:34]} Nf6 {[%emt 0:01:06]} 9. d4 {[%emt 0:01:18]} c4 {[%emt 0:00:56]} 10. Nc3 {[%emt 0:01:08]} Be7 {[%emt 0:00:48]} 11. Bf4 {[%emt 0:01:21]} O-O {[%emt 0:00:41]} 12. Rad1 {[%emt 0:00:16]} h6 {[%emt 0:02:04]} 13. Ne5 {[%emt 0:00:50]} a6 {[%emt 0:02:27]} 14. a4 {[%emt 0:01:09]} Nb4 {[%emt 0:01:39]} 15. Qb1 {[%emt 0:00:03]} Qc8 {[%emt 0:01:41]} 16. h3 {[%emt 0:00:23]} Nh5 {[%emt 0:00:35]} 17. Kh2 {[%emt 0:00:39]} Qe6 {[%emt 0:01:17]} 18. Bf3 {[%emt 0:00:55]} Nxf4 {[%emt 0:00:47]} 19. gxf4 {[%emt 0:00:03]} Rab8 {[%emt 0:00:51]} 20. Rg1 {[%emt 0:00:48]} Bc8 {[%emt 0:00:19]} 21. Bg4 {[%emt 0:00:33]} f5 {[%emt 0:00:13]} 22. Bf3 {[%emt 0:00:07]} Bh4 {[%emt 0:00:08]} 23. Rg2 {[%emt 0:00:08]} Bf6 {[%emt 0:00:29]} 24. Rg6 {[%emt 0:00:42]} Rd8 {[%emt 0:00:12]} 25. Rdg1 {[%emt 0:00:05]} Kh8 {[%emt 0:00:04]} 26. Qf1 {[%emt 0:01:34]} Bd7 {[%emt 0:00:01]} 27. Qg2 {[%emt 0:00:09]} Rg8 {[%emt 0:00:23]} 28. Nxd5 {[%emt 0:00:17]} Nxd5 {[%emt 0:00:04]} 29. Bxd5 {[%emt 0:00:02]} 1-0

[Event "RUS-ch Women Rapid 2019"]
[Site "Sochi"]
[Date "2019.10.15"]
[Round "2.12"]
[White "Murashova, Ekaterina"]
[Black "Gutkovich, Polina"]
[Result "1/2-1/2"]
[ECO "B00"]
[WhiteElo "2248"]
[BlackElo "2105"]
[Annotator "NA"]
[PlyCount "135"]
[EventDate "2019.10.15"]
[EventType "swiss"]
[EventCountry "RUS"]
[SourceTitle "playchess.com"]
[Source "ChessBase"]
[SourceQuality "1"]
[TimeControl "900+10"]

1. e4 Nc6 2. Nf3 d6 3. d4 Nf6 4. Nc3 Bg4 5. d5 Nb8 6. Be2 c6 7. O-O g6 8. Be3 Bg7 9. Qd2 Nbd7 10. h3 Bxf3 11. Bxf3 O-O 12. a4 Ne5 13. Be2 cxd5 14. exd5 Qc8 15. b3 a6 16. Bd4 Qc7 17. a5 Rac8 18. Ra2 Ned7 19. Re1 Nc5 20. Bf1 e5 21. dxe6 Nxe6 22. Bxf6 Bxf6 23. Nd5 Bg5 24. Qxg5 Nxg5 25. Nxc7 Rxc7 26. c4 Ne6 27. g3 Nd4 28. Re3 d5 29. cxd5 Rd8 30. Bc4 Nf5 31. Rd3 Nd6 32. Rd4 Nf5 33. Rd1 Nd6 34. Ra4 Ne4 35. Rd4 Nc3 36. Ra1 Rcd7 37. Rd3 Ne4 38. Rad1 Nd6 39. Kg2 Rc8 40. Rd4 Rc5 41. Ra1 Nb5 42. Rd3 Nd6 43. Ra4 Kf8 44. g4 Rdc7 45. Rd4 Ke7 46. Kf3 Kf6 47. Rf4+ Ke5 48. Ra1 Nxc4 49. Re4+ Kxd5 50. Rd1+ Nd2+ 51. Rxd2+ Kc6 52. b4 Rc3+ 53. Kg2 b6 54. Ra2 b5 55. g5 Rc4 56. Rae2 Rxe4 57. Rxe4 Kd5 58. Rf4 Ke5 59. Rf6 Rc4 60. Rxf7 Rxb4 61. Ra7 Ra4 62. Rxa6 Kf5 63. Ra8 Kxg5 64. a6 b4 65. Rb8 Rxa6 66. Rxb4 Ra5 67. Kg3 h5 68. h4+ 1/2-1/2

[Event "RUS-ch Women Rapid 2019"]
[Site "Sochi"]
[Date "2019.10.15"]
[Round "3.1"]
[White "Voit, Daria"]
[Black "Garifullina, Leya"]
[Result "1/2-1/2"]
[ECO "E16"]
[WhiteElo "2361"]
[BlackElo "2330"]
[Annotator "NA"]
[PlyCount "64"]
[EventDate "2019.10.15"]
[EventType "swiss"]
[EventCountry "RUS"]
[SourceTitle "playchess.com"]
[Source "ChessBase"]
[SourceQuality "1"]
[TimeControl "900+10"]

1. d4 {[%emt 0:00:00]} Nf6 {[%emt 0:00:00]} 2. Nf3 {[%emt 0:00:00]} e6 {[%emt 0:00:00]} 3. c4 {[%emt 0:00:00]} b6 {[%emt 0:00:00]} 4. g3 {[%emt 0:00:00]} Bb7 {[%emt 0:00:00]} 5. Bg2 {[%emt 0:00:00]} Bb4+ {[%emt 0:00:02]} 6. Bd2 {[%emt 0:00:02]} Be7 {[%emt 0:00:01]} 7. O-O {[%emt 0:00:07]} O-O {[%emt 0:00:03]} 8. Nc3 {[%emt 0:00:09]} c6 {[%emt 0:00:02]} 9. Qc2 {[%emt 0:02:25]} d5 {[%emt 0:00:03]} 10. Rfd1 {[%emt 0:00:24]} Nbd7 {[%emt 0:00:20]} 11. Bf4 {[%emt 0:00:52]} Qc8 {[%emt 0:01:04]} 12. cxd5 {[%emt 0:00:20]} cxd5 {[%emt 0:00:04]} 13. Rac1 {[%emt 0:00:06]} Bc6 {[%emt 0:00:23]} 14. Ne5 {[%emt 0:01:26]} Nxe5 {[%emt 0:00:11]} 15. dxe5 {[%emt 0:00:04]} Nd7 {[%emt 0:00:19]} 16. e4 {[%emt 0:00:11]} dxe4 {[%emt 0:01:08]} 17. Nxe4 {[%emt 0:00:25]} Nc5 {[%emt 0:00:05]} 18. Nxc5 {[%emt 0:01:46]} Bxg2 {[%emt 0:00:59]} 19. Kxg2 {[%emt 0:01:42]} Bxc5 {[%emt 0:00:03]} 20. Qe4 {[%emt 0:00:07]} Rd8 {[%emt 0:00:40]} 21. Bg5 {[%emt 0:01:33]} Rxd1 {[%emt 0:00:09]} 22. Rxd1 {[%emt 0:00:01]} Qe8 {[%emt 0:00:16]} 23. b4 {[%emt 0:01:28]} Bf8 {[%emt 0:00:04]} 24. a3 {[%emt 0:00:30]} h6 {[%emt 0:00:02]} 25. Be3 {[%emt 0:00:01]} Rb8 {[%emt 0:00:19]} 26. Rc1 {[%emt 0:00:48]} Rc8 {[%emt 0:00:42]} 27. Rc4 {[%emt 0:02:24]} Rxc4 {[%emt 0:00:10]} 28. Qxc4 {[%emt 0:00:02]} Qa4 {[%emt 0:00:05]} 29. Qc3 {[%emt 0:00:18]} a5 {[%emt 0:00:19]} 30. Bxb6 {[%emt 0:00:58]} axb4 {[%emt 0:00:01]} 31. axb4 {[%emt 0:00:24]} Qxb4 {[%emt 0:00:02]} 32. Qxb4 {[%emt 0:00:17]} Bxb4 {[%emt 0:00:02]} 1/2-1/2

[Event "RUS-ch Women Rapid 2019"]
[Site "Sochi"]
[Date "2019.10.15"]
[Round "3.2"]
[White "Gvanceladze, Anna"]
[Black "Ambartsumova, Karina"]
[Result "1/2-1/2"]
[ECO "E62"]
[WhiteElo "2270"]
[BlackElo "2336"]
[Annotator "NA RC"]
[PlyCount "47"]
[EventDate "2019.10.15"]
[EventType "swiss"]
[EventCountry "RUS"]
[SourceTitle "playchess.com"]
[Source "ChessBase"]
[SourceQuality "1"]
[TimeControl "900+10"]

1. d4 {[%emt 0:00:00]} d6 {[%emt 0:00:20]} 2. Nf3 {[%emt 0:00:03]} g6 {[%emt 0:00:04]} 3. g3 {[%emt 0:00:38]} Bg7 {[%emt 0:00:04]} 4. Bg2 {[%emt 0:00:23]} Nf6 {[%emt 0:00:28]} 5. c4 {[%emt 0:00:04]} O-O {[%emt 0:00:05]} 6. Nc3 {[%emt 0:00:01]} Nc6 {[%emt 0:00:18]} 7. O-O {[%emt 0:00:25]} e5 {[%emt 0:01:00]} 8. d5 {[%emt 0:00:44]} Nb8 {[%emt 0:00:02]} 9. e4 {[%emt 0:00:29]} a5 {[%emt 0:00:02]} 10. a3 {[%emt 0:00:47]} Nbd7 {[%emt 0:00:39]} 11. Qc2 {[%emt 0:02:58]} Nc5 {[%emt 0:00:23]} 12. b3 {[%emt 0:00:51]} Nfd7 {[%emt 0:03:15]} 13. Rb1 {[%emt 0:00:42]} f5 {[%emt 0:01:02]} 14. b4 {[%emt 0:03:10]} axb4 {[%emt 0:00:26]} 15. axb4 {[%emt 0:00:01]} Nxe4 {[%emt 0:00:53]} 16. Nxe4 {[%emt 0:00:02]} fxe4 {[%emt 0:00:01]} 17. Ng5 {[%emt 0:00:07]} Nf6 {[%emt 0:00:20]} 18. Nxe4 {[%emt 0:00:29]} Bf5 {[%emt 0:01:26]} 19. Bg5 {[%emt 0:02:42]} Qd7 {[%emt 0:00:44]} 20. Bxf6 {[%emt 0:00:05]} Bxf6 {[%emt 0:00:05]} 21. Nxf6+ {[%emt 0:00:03]} Rxf6 {[%emt 0:00:02]} 22. Be4 {[%emt 0:00:02]} Bxe4 {[%emt 0:02:31]} 23. Qxe4 {[%emt 0:00:02]} Raf8 {[%emt 0:00:28]} 24. Ra1 {[%emt 0:01:11]} 1/2-1/2

[Event "RUS-ch Women Rapid 2019"]
[Site "Sochi"]
[Date "2019.10.15"]
[Round "3.3"]
[White "Fominykh, Maria"]
[Black "Kovanova, Baira"]
[Result "0-1"]
[ECO "A08"]
[WhiteElo "2206"]
[BlackElo "2288"]
[Annotator "NA"]
[PlyCount "112"]
[EventDate "2019.10.15"]
[EventType "swiss"]
[EventCountry "RUS"]
[SourceTitle "playchess.com"]
[Source "ChessBase"]
[SourceQuality "1"]
[TimeControl "900+10"]

1. Nf3 Nf6 2. g3 e6 3. Bg2 d5 4. O-O c5 5. d3 Be7 6. Nbd2 Nc6 7. e4 O-O 8. Re1 b5 9. e5 Nd7 10. Nf1 Bb7 11. h4 Qc7 12. Bf4 Rfc8 13. h5 h6 14. N1h2 Qd8 15. Ng4 Bf8 16. c4 bxc4 17. dxc4 Ne7 18. Nd2 Bc6 19. cxd5 Nxd5 20. Bxd5 Bxd5 21. Ne4 Rab8 22. Qc2 Qb6 23. Re2 Be7 24. Nef6+ Bxf6 25. Nxf6+ gxf6 26. exf6 Nxf6 27. Bxh6 Nh7 28. Qc3 f6 29. Qd3 f5 30. Qc3 Rb7 31. Be3 Qb4 32. Qe5 Qg4 33. Rd2 Qf3 34. Rxd5 Qxd5 35. Qc3 Rg7 36. Bh6 Rg4 37. Re1 Rd8 38. Kh2 Qd4 39. Qf3 Qd5 40. Qc3 f4 41. Re5 fxg3+ 42. fxg3 Qd3 43. Qe1 Qd1 44. Qe3 Rd3 45. Qxc5 Rd5 46. Qc8+ Kf7 47. Qc7+ Rd7 48. Qc3 Nf6 49. Re1 Qd3 50. Qe5 Rh4+ 51. Kg1 Qd4+ 52. Qxd4 Rhxd4 53. Be3 Re4 54. h6 Rd3 55. Bf2 Rxe1+ 56. Bxe1 Kg6 0-1

[Event "RUS-ch Women Rapid 2019"]
[Site "Sochi"]
[Date "2019.10.15"]
[Round "3.4"]
[White "Bivol, Alina"]
[Black "Markelova, Lubov"]
[Result "1-0"]
[ECO "A11"]
[WhiteElo "2283"]
[BlackElo "2198"]
[Annotator "NA"]
[PlyCount "82"]
[EventDate "2019.10.15"]
[EventType "swiss"]
[EventCountry "RUS"]
[SourceTitle "playchess.com"]
[Source "ChessBase"]
[SourceQuality "1"]
[TimeControl "900+10"]

1. c4 {[%emt 0:00:00]} c6 {[%emt 0:00:02]} 2. Nc3 {[%emt 0:00:01]} d5 {[%emt 0:00:01]} 3. cxd5 {[%emt 0:00:02]} cxd5 {[%emt 0:00:01]} 4. d4 {[%emt 0:00:01]} Nf6 {[%emt 0:00:04]} 5. Bf4 {[%emt 0:00:07]} Nc6 {[%emt 0:00:02]} 6. e3 {[%emt 0:00:03]} Bf5 {[%emt 0:00:02]} 7. h3 {[%emt 0:00:51]} e6 {[%emt 0:00:17]} 8. Nf3 {[%emt 0:01:02]} Be7 {[%emt 0:00:05]} 9. Be2 {[%emt 0:00:11]} O-O {[%emt 0:00:21]} 10. O-O {[%emt 0:00:03]} Rc8 {[%emt 0:00:16]} 11. Nh4 {[%emt 0:01:11]} Be4 {[%emt 0:00:54]} 12. f3 {[%emt 0:00:03]} Bg6 {[%emt 0:01:01]} 13. Nxg6 {[%emt 0:00:02]} hxg6 {[%emt 0:00:02]} 14. Bg3 {[%emt 0:00:28]} Nh5 {[%emt 0:00:45]} 15. Bf2 {[%emt 0:00:01]} Bh4 {[%emt 0:01:22]} 16. Qe1 {[%emt 0:00:16]} Bxf2+ {[%emt 0:00:17]} 17. Qxf2 {[%emt 0:00:02]} Qd6 {[%emt 0:00:33]} 18. Rfd1 {[%emt 0:00:32]} Ng3 {[%emt 0:00:57]} 19. Bd3 {[%emt 0:00:27]} Nf5 {[%emt 0:00:08]} 20. Rac1 {[%emt 0:00:04]} Na5 {[%emt 0:02:05]} 21. Nb5 {[%emt 0:00:27]} Qb6 {[%emt 0:00:39]} 22. e4 {[%emt 0:00:12]} dxe4 {[%emt 0:00:56]} 23. fxe4 {[%emt 0:00:16]} Nd6 {[%emt 0:00:56]} 24. d5 {[%emt 0:00:19]} Qxf2+ {[%emt 0:01:33]} 25. Kxf2 {[%emt 0:00:01]} Rxc1 {[%emt 0:01:19]} 26. Rxc1 {[%emt 0:00:02]} Nxb5 {[%emt 0:00:02]} 27. Bxb5 {[%emt 0:00:01]} exd5 {[%emt 0:00:03]} 28. exd5 {[%emt 0:00:03]} Rd8 {[%emt 0:00:20]} 29. Rd1 {[%emt 0:00:40]} a6 {[%emt 0:02:35]} 30. Be2 {[%emt 0:00:33]} b5 {[%emt 0:00:12]} 31. b3 {[%emt 0:01:12]} Nb7 {[%emt 0:00:33]} 32. Bf3 {[%emt 0:00:02]} Nd6 {[%emt 0:00:10]} 33. Ke3 {[%emt 0:00:22]} Rc8 {[%emt 0:00:18]} 34. Kd4 {[%emt 0:00:48]} Kf8 {[%emt 0:00:23]} 35. Re1 {[%emt 0:00:43]} Rc2 {[%emt 0:00:54]} 36. a3 {[%emt 0:01:17]} a5 {[%emt 0:00:14]} 37. Re2 {[%emt 0:01:20]} Rc1 {[%emt 0:00:19]} 38. Bg4 {[%emt 0:01:58]} b4 {[%emt 0:00:22]} 39. axb4 {[%emt 0:00:11]} axb4 {[%emt 0:00:00]} 40. Bd7 {[%emt 0:00:11]} Rd1+ {[%emt 0:00:25]} 41. Kc5 {[%emt 0:00:08]} Nb7+ {[%emt 0:00:22]} 1-0

[Event "RUS-ch Women Rapid 2019"]
[Site "Sochi"]
[Date "2019.10.15"]
[Round "3.7"]
[White "Samigullina, Diana"]
[Black "Chernyak, Viktoria"]
[Result "1-0"]
[ECO "D05"]
[WhiteElo "2161"]
[BlackElo "2284"]
[Annotator "NA"]
[PlyCount "123"]
[EventDate "2019.10.15"]
[EventType "swiss"]
[EventCountry "RUS"]
[SourceTitle "playchess.com"]
[Source "ChessBase"]
[SourceQuality "1"]
[TimeControl "900+10"]

1. d4 {[%emt 0:00:00]} d5 {[%emt 0:00:00]} 2. Nf3 {[%emt 0:00:00]} Nf6 {[%emt 0:00:01]} 3. e3 {[%emt 0:00:16]} c5 {[%emt 0:00:41]} 4. c3 {[%emt 0:00:18]} e6 {[%emt 0:00:04]} 5. Bd3 {[%emt 0:00:04]} Nc6 {[%emt 0:00:21]} 6. Nbd2 {[%emt 0:00:12]} c4 {[%emt 0:01:15]} 7. Bc2 {[%emt 0:00:12]} b5 {[%emt 0:00:05]} 8. e4 {[%emt 0:01:38]} Bb7 {[%emt 0:00:31]} 9. O-O {[%emt 0:02:47]} Be7 {[%emt 0:00:56]} 10. Re1 {[%emt 0:00:15]} Qc7 {[%emt 0:00:54]} 11. exd5 {[%emt 0:00:35]} Nxd5 {[%emt 0:01:53]} 12. a4 {[%emt 0:00:18]} b4 {[%emt 0:01:12]} 13. Nxc4 {[%emt 0:01:12]} bxc3 {[%emt 0:00:14]} 14. Nce5 {[%emt 0:02:16]} Bf6 {[%emt 0:05:39]} 15. bxc3 {[%emt 0:01:06]} Nxc3 {[%emt 0:00:01]} 16. Qd2 {[%emt 0:00:28]} Nd5 {[%emt 0:00:05]} 17. Ba3 {[%emt 0:00:20]} Nce7 {[%emt 0:00:39]} 18. Rac1 {[%emt 0:01:19]} Qd8 {[%emt 0:00:37]} 19. Qd3 {[%emt 0:01:03]} Rb8 {[%emt 0:01:10]} 20. Qb5+ {[%emt 0:02:01]} Bc6 {[%emt 0:00:11]} 21. Nxc6 {[%emt 0:00:07]} Rxb5 {[%emt 0:00:02]} 22. Nxd8 {[%emt 0:00:03]} Rb8 {[%emt 0:00:19]} 23. Nxe6 {[%emt 0:00:28]} fxe6 {[%emt 0:00:02]} 24. Rxe6 {[%emt 0:00:05]} Kf7 {[%emt 0:00:02]} 25. Rce1 {[%emt 0:00:11]} Rhc8 {[%emt 0:00:22]} 26. Bxe7 {[%emt 0:00:34]} Nxe7 {[%emt 0:00:12]} 27. Bd3 {[%emt 0:00:31]} Rc3 {[%emt 0:00:19]} 28. Bf1 {[%emt 0:00:12]} Rb2 {[%emt 0:00:32]} 29. Ra6 {[%emt 0:00:15]} Rc7 {[%emt 0:00:58]} 30. Ne5+ {[%emt 0:00:02]} Bxe5 {[%emt 0:00:04]} 31. dxe5 {[%emt 0:00:01]} Nd5 {[%emt 0:00:08]} 32. g3 {[%emt 0:00:23]} Nb4 {[%emt 0:00:03]} 33. Ra5 {[%emt 0:00:21]} Nc2 {[%emt 0:00:27]} 34. Rd1 {[%emt 0:00:04]} Ke7 {[%emt 0:00:10]} 35. Rb5 {[%emt 0:00:38]} Ra2 {[%emt 0:00:01]} 36. a5 {[%emt 0:00:03]} a6 {[%emt 0:00:16]} 37. Rbd5 {[%emt 0:00:37]} Nb4 {[%emt 0:00:01]} 38. Rd6 {[%emt 0:00:11]} Rxa5 {[%emt 0:00:05]} 39. f4 {[%emt 0:00:06]} Ra2 {[%emt 0:00:13]} 40. Bh3 {[%emt 0:00:08]} Rac2 {[%emt 0:00:33]} 41. Rd7+ {[%emt 0:00:02]} Kf8 {[%emt 0:00:03]} 42. Rxc7 Rxc7 {[%emt 0:00:01]} 43. Rd8+ {[%emt 0:00:23]} Ke7 {[%emt 0:00:05]} 44. Rg8 {[%emt 0:00:02]} Kf7 {[%emt 0:00:02]} 45. Rd8 {[%emt 0:00:20]} Nc2 {[%emt 0:00:28]} 46. Rd7+ {[%emt 0:00:10]} Rxd7 {[%emt 0:00:02]} 47. Bxd7 {[%emt 0:00:01]} Ke7 {[%emt 0:00:04]} 48. Ba4 {[%emt 0:00:04]} Nd4 {[%emt 0:00:08]} 49. Kf2 {[%emt 0:00:03]} g6 {[%emt 0:00:13]} 50. g4 {[%emt 0:00:21]} Ne6 {[%emt 0:00:09]} 51. Ke3 {[%emt 0:00:10]} Nc5 {[%emt 0:00:08]} 52. Bc6 {[%emt 0:00:08]} a5 {[%emt 0:00:15]} 53. f5 {[%emt 0:00:10]} gxf5 {[%emt 0:00:08]} 54. gxf5 {[%emt 0:00:01]} a4 {[%emt 0:00:22]} 55. Bd5 {[%emt 0:00:34]} Nd7 {[%emt 0:00:05]} 56. Kf4 {[%emt 0:00:15]} a3 {[%emt 0:00:05]} 57. Ba2 {[%emt 0:00:03]} Nc5 {[%emt 0:00:27]} 58. f6+ {[%emt 0:00:03]} Kf8 {[%emt 0:00:17]} 59. e6 {[%emt 0:00:21]} Nd3+ {[%emt 0:00:15]} 60. Kf5 {[%emt 0:00:11]} Nb4 {[%emt 0:00:03]} 61. e7+ {[%emt 0:00:02]} Ke8 {[%emt 0:00:00]} 62. Ke6 {[%emt 0:00:07]} 1-0

[Event "RUS-ch Women Rapid 2019"]
[Site "Sochi"]
[Date "2019.10.15"]
[Round "3.8"]
[White "Chekmareva, Liya"]
[Black "Shafigullina, Zarina"]
[Result "1/2-1/2"]
[ECO "B31"]
[WhiteElo "2023"]
[BlackElo "2295"]
[Annotator "NA"]
[PlyCount "55"]
[EventDate "2019.10.15"]
[EventType "swiss"]
[EventCountry "RUS"]
[SourceTitle "playchess.com"]
[Source "ChessBase"]
[SourceQuality "1"]
[TimeControl "900+10"]

1. e4 c5 2. Nf3 Nc6 3. Bb5 g6 4. O-O Bg7 5. c3 Nf6 6. Re1 O-O 7. h3 a6 8. Bf1 d6 9. d4 Nd7 10. Be3 cxd4 11. cxd4 b5 12. Qd2 Re8 13. Nc3 Bb7 14. Rad1 Rc8 15. Bh6 Bh8 16. h4 Qa5 17. h5 b4 18. Nd5 e6 19. Nf4 b3 20. axb3 Qxd2 21. Nxd2 Nxd4 22. Nc4 Nb5 23. Nxd6 Nxd6 24. Rxd6 Nc5 25. b4 Nxe4 26. Rd7 Bc6 27. Rd3 Bxb2 28. Rde3 1/2-1/2